[Event "Austrian Bundesliga 2023-24"]
[Site "Austria"]
[Date "2024.03.22"]
[Round "9.33"]
[White "Samunenkov, Ihor"]
[Black "Peyrer, Konstantin"]
[Result "1/2-1/2"]
[ECO "A40"]
[WhiteElo "2544"]
[BlackElo "2434"]
[Annotator "TA"]
[PlyCount "116"]
[EventDate "2023.10.21"]
[EventType "team-tourn"]
[EventCountry "AUT"]
[SourceTitle "playchess.com"]
[Source "ChessBase"]
[SourceQuality "1"]
[TimeControl "40/5400+30:1800+30"]

{[%evp 17,116,14,17,28,31,22,24,32,22,27,29,27,34,19,27,14,39,21,59,27,20,21,35,19,19,0,16,15,34,31,45,41,60,24,21,0,0,-37,52,22,58,0,0,-22,-3,-20,-38,-33,-64,-40,-39,-52,-2,-9,-18,-81,-78,-68,-78,-75,-73,-61,-40,-95,-93,-94,-83,-85,-94,-133,-103,-127,-32,-56,0,0,0,0,29,0,0,0,85,-20,-18,-12,-25,-25,-25,-25,-36,-36,-36,-44,-22,-16,-19,-17,-12,-20,-20]} 1. d4 {[%emt 0:00:10]} Nf6 {[%emt 0:00:10]} 2. c4 {[%emt 0:00:14]} e6 {[%emt 0:00:05]} 3. g3 {[%emt 0:00:12]} d5 {[%emt 0:01:00]} 4. Nf3 {[%emt 0:00:11]} Bb4+ {[%emt 0:00:10]} 5. Bd2 {[%emt 0:00:09]} Be7 {[%emt 0:00:53]} 6. Bg2 {[%emt 0:00:10]} O-O {[%emt 0:00:08]} 7. O-O {[%emt 0:00:10]} Nbd7 {[%emt 0:00:08]} 8. Qc2 {[%emt 0:00:10]} c6 {[%emt 0:00:06]} 9. Bf4 {[%emt 0:00:14]} a5 {[%emt 0:00:11]} 10. Rd1 {[%emt 0:00:19]} a4 {[%emt 0:00:11]} 11. h4 {[%emt 0:00:52]} h6 {[%emt 0:06:48]} 12. Nbd2 {[%emt 0:01:48] White has an edge.} Nh5 {[%emt 0:01:20]} 13. e3 {[%emt 0:00:50]} Qa5 {[%emt 0:05:21]} 14. Be5 {[%emt 0:04:06]} Nhf6 {[%emt 0:03:45]} 15. Bxf6 {[%emt 0:05:21]} Nxf6 {[%emt 0:01:32]} 16. Ne5 {[%emt 0:08:55]} Qc7 {[%emt 0:12:35]} 17. Nd3 {[%emt 0:12:59]} Bd7 {[%emt 0:04:04]} 18. b4 {[%emt 0:04:26]} axb3 {[%emt 0:05:54]} 19. axb3 {[%emt 0:00:15]} Rfc8 {[%emt 0:00:29]} 20. b4 {[%emt 0:05:15]} Be8 {[%emt 0:05:44]} 21. Rdc1 {[%emt 0:12:44]} Qd8 {[%emt 0:04:49]} 22. c5 {[%emt 0:07:46]} Nd7 {[%emt 0:04:23]} 23. Qb2 {[%emt 0:03:04]} f6 {[%emt 0:10:20]} 24. e4 {[%emt 0:03:48]} dxe4 {[%emt 0:01:12]} 25. Nxe4 {[%emt 0:00:14]} Nf8 {[%emt 0:01:01][%cal Oe6e5]} 26. f4 {[%emt 0:11:34]} Bg6 {[%emt 0:01:27]} 27. Ndf2 {[%emt 0:01:11]} Qd7 {[%emt 0:05:50]} ({Black should play} 27... Bxe4 $15 28. Rxa8 (28. Bxe4 Rxa1 29. Rxa1 f5 $15) (28. Nxe4 f5 $15) 28... Rxa8 29. Bxe4 f5) 28. Nd2 $14 {[%emt 0:00:33]} Rd8 {[%emt 0:00:31]} 29. Nf3 {[%emt 0:01:46]} (29. Rxa8 $14 Rxa8 30. Nc4) 29... Bh5 $11 {[%emt 0:01:30]} 30. g4 {[%emt 0:01:42]} Bf7 {[%emt 0:00:05]} 31. h5 {[%emt 0:02:09] Dodges Ng6} Qc7 {[%emt 0:01:47]} 32. Rxa8 {[%emt 0:05:04]} Rxa8 {[%emt 0:00:05]} 33. Qd2 {[%emt 0:00:08]} Ra3 {[%emt 0:02:41]} 34. Re1 {[%emt 0:01:00]} Qd7 {[%emt 0:06:03]} (34... Bd8 $15) 35. Qb2 {[%emt 0:02:20]} Ra8 {[%emt 0:00:58]} 36. Qc3 {[%emt 0:02:48] [#]} (36. Bf1 $11) 36... Bd8 $1 $17 {[%emt 0:02:24]} 37. Nd3 {[%emt 0:02:25]} Bc7 {[%emt 0:00:56]} 38. Bh3 {[%emt 0:01:23]} Qd5 {[%emt 0:02:35]} 39. Bg2 {[%emt 0:00:26][%cal Of3e5]} Qa2 {[%emt 0:01:19] ...Ra3 would now be deadly.} 40. Rd1 {[%emt 0:00:00]} (40. Bf1 $15) 40... Ra3 {[%emt 0:00:00]} 41. Qe1 {[%emt 0:12:51]} Qc2 {[%emt 0:02:44]} 42. Rd2 {[%emt 0:04:52]} Qc3 {[%emt 0:00:17][%cal Oc7f4]} 43. Rd1 {[%emt 0:01:06]} Qb3 {[%emt 0:05:07]} 44. Kh1 {[%emt 0:02:51]} g6 {[%emt 0:01:13]} (44... Qc2 $17 45. Qd2 Qxd2 46. Rxd2 g6) 45. g5 $1 $15 {[%emt 0:03:06]} e5 {[%emt 0:02:32]} (45... gxh5 46. gxf6 (46. gxh6 Ng6 $17) 46... Nh7 47. d5 (47. Nfe5 Nxf6 48. Rb1 Qa4 $11) 47... exd5 48. Nd4 $11) (45... hxg5 $15 46. fxg5 Qc2 (46... gxh5 47. gxf6 h4 48. Nfe5 $16)) 46. dxe5 {[%emt 0:03:23]} fxg5 {[%emt 0:00:38]} 47. fxg5 {[%emt 0:01:29]} Qe6 {[%emt 0:02:02]} 48. Qe4 {[%emt 0:03:36]} (48. gxh6 {is interesting.} Qf5 49. Qh4 gxh5 50. Qg5+) 48... gxh5 {[%emt 0:01:47]} 49. Nd4 {[%emt 0:01:01]} Qe7 {[%emt 0:14:00] [#]} (49... Qc4 $11 50. gxh6 Bg6) 50. e6 {[%emt 0:01:27]} (50. gxh6 $6 Bg6 51. Nf5 Qe6 $11) ({White should try} 50. Nf5 $1 $16 {[%cal Rf5e7]} Qxg5 51. Nf4) 50... Bg6 $11 {[%emt 0:00:16]} (50... Nxe6 $2 51. g6 (51. gxh6 Qf6 $11) 51... Kf8 52. gxf7 $18) 51. Nf5 {[%emt 0:00:25] Dancing on a razor blade.} Bxf5 {[%emt 0:09:20]} (51... Nxe6 52. Nxe7+ Kf7 53. Qxg6+ Kxe7 54. Re1 (54. Qxh6 Rb3 55. Qf6+ Kd7 56. Ne5+ Kc8 57. Qxe6+ Kb8 58. Qg8+ Ka7 59. Ra1+ Ra3 60. Rxa3+ Ba5 61. Rxa5#) (54. Qf6+ Kd7 55. Nf4+ Kc8 56. Nxe6 b5 57. Rd8+ Kb7 58. Bxc6+ Kxc6 59. Nxc7+ Kxc7 60. Qb6#) (54. Qxh6 Kd7 55. Ne5+ Kc8 56. Qxe6+ Kb8 57. Nxc6+ bxc6 58. Qxc6 Rh3+ 59. Bxh3 h4 60. Bg2 Bg3 61. Qb7#)) (51... Qxg5 $2 52. e7 Ra8 (52... Bxf5 $2 53. Rf1 $18) 53. Rf1 $18 (53. exf8=B Bxf5 54. Bxh6 Bxe4 $11) (53. exf8=R+ Kxf8 54. Rf1 Qf6 $18)) (51... Qxe6 {is more complex.} 52. Ne7+ Kg7 53. Qd4+ Kh7) 52. Qxf5 {[%emt 0:00:12]} Qxe6 {[%emt 0:00:04]} (52... Nxe6 $2 {perishes.} 53. Qg6+ (53. gxh6 Nd4 $18) 53... Ng7 54. gxh6 (54. Qxh6 $2 {loses.} Rxd3 55. Ra1 Qe5 $19) 54... Qh4+ 55. Kg1 Qh2+ 56. Kf1 $18) (52... hxg5 53. Rf1 $14) 53. Qxe6+ {[%emt 0:00:50]} Nxe6 {[%emt 0:00:06]} 54. gxh6 {[%emt 0:00:37]} Kh7 {[%emt 0:01:00]} 55. b5 {[%emt 0:00:47]} Kxh6 {[%emt 0:02:39]} 56. bxc6 {[%emt 0:00:13] The position is equal.} bxc6 {[%emt 0:00:04]} 57. Bxc6 {[%emt 0:00:17]} Rc3 {[%emt 0:00:11]} 58. Bd5 {[%emt 0:00:20]} Nxc5 {[%emt 0:00:11] Weighted Error Value: White=0.14 (very precise) /Black=0.19 (very precise) .  Mistake:       	White=4     	Black=5      Inaccurate:     	White=4     	Black=3      OK:         	White=17    	Black=15     Best:        	White=1     	Black=1      Strong:       	White=1     	Black=1} 1/2-1/2

[Event "Austrian Bundesliga 2023-24"]
[Site "Austria"]
[Date "2024.03.22"]
[Round "9.34"]
[White "Froewis, Georg"]
[Black "Korpa, Bence"]
[Result "0-1"]
[ECO "A10"]
[WhiteElo "2450"]
[BlackElo "2545"]
[Annotator "TA"]
[PlyCount "70"]
[EventDate "2023.10.21"]
[EventType "team-tourn"]
[EventCountry "AUT"]
[SourceTitle "playchess.com"]
[Source "ChessBase"]
[SourceQuality "1"]
[TimeControl "40/5400+30:1800+30"]

{[%evp 11,70,18,26,22,30,34,43,-12,-14,-13,-27,-13,-25,0,-27,-74,62,-9,0,0,-10,-36,-31,-200,-191,-199,-175,-295,-275,-300,-283,-545,-558,-589,-562,-572,-559,-520,-247,-615,-416,-442,-477,-1654,-1501,-1003,-930,-1335,-878,-29969,-29970,-29986,-29987,-29989,-29990,-29994,-29992,-29995,-29990,-29994,-29995]} 1. c4 {[%emt 0:00:03]} f5 {[%emt 0:00:23]} 2. Nf3 {[%emt 0:00:28]} Nf6 {[%emt 0:00:14]} 3. Nc3 {[%emt 0:01:29]} g6 {[%emt 0:00:22]} 4. d4 {[%emt 0:04:44]} Bg7 {[%emt 0:00:41]} 5. Qc2 {[%emt 0:00:05]} d6 {[%emt 0:06:49]} 6. Bg5 {[%emt 0:00:20]} O-O {[%emt 0:06:08]} 7. O-O-O {[%emt 0:03:54]} Qe8 {[%emt 0:01:37]} 8. Bxf6 {[%emt 0:05:50]} Bxf6 {[%emt 0:04:48]} 9. e4 {[%emt 0:00:32]} (9. Nd5 $14 Na6 10. Nxf6+ exf6 11. e3) 9... fxe4 {[%emt 0:08:43]} 10. Nxe4 {[%emt 0:00:06]} Bg7 {[%emt 0:00:06]} 11. h4 {[%emt 0:05:49][%cal Bh2h4,Bh4h5][%mdl 32]} Bf5 {[%emt 0:08:29]} 12. h5 {[%emt 0:17:52]} Nc6 {[%emt 0:00:13] Threatens to win with ...Bh6+.} 13. a3 {[%emt 0:01:11]} (13. h6 $1 $11 Bh8 14. Rh4) 13... e5 {[%emt 0:29:54]} (13... d5 $2 14. cxd5 Nd8 15. Bc4 $18) (13... e6 $17 {Strongly threatening ...d5.} 14. h6 Bh8) 14. Bd3 {[%emt 0:04:50]} (14. d5 $1 $14 Nd4 15. Nxd4 exd4 16. Bd3) 14... Nxd4 $11 {[%emt 0:02:17]} 15. Nxd4 {[%emt 0:00:15]} exd4 {[%emt 0:00:06]} 16. f3 {[%emt 0:08:28]} gxh5 {[%emt 0:06:48]} 17. g4 $2 {[%emt 0:08:43] White does not recover from this.} hxg4 $19 {[%emt 0:00:54]} 18. fxg4 {[%emt 0:03:52]} Bg6 {[%emt 0:00:16]} (18... Bxg4 19. Rde1 h5 20. Nf2 $15) 19. Kb1 {[%emt 0:00:49] [#]} (19. Rde1 $142 Qe6 20. g5) 19... Rf3 $1 {[%emt 0:03:57]} 20. Rde1 {[%emt 0:02:33]} Qe5 {[%emt 0:02:42][%cal Of3d3] Dodges Nf6+. aiming for ...Rxd3!} 21. g5 $2 {[%emt 0:05:16] [#]} (21. Nf2 Re3 22. Rd1 Bxd3 23. Nxd3) 21... Rxd3 $1 {[%emt 0:04:18]} 22. Qxd3 {[%emt 0:00:36]} Re8 {[%emt 0:00:17][%cal Rg6e4]} 23. Rh4 {[%emt 0:01:08] [#]} Qxg5 $1 {[%emt 0:03:03][%mdl 512]} 24. Qh3 {[%emt 0:02:06]} Qf5 {[%emt 0:05:26]} (24... Qa5 $142 25. b4 Qe5) 25. Qg2 $2 {[%emt 0:01:11]} (25. Qxf5 Bxf5 26. Kc1) 25... Qa5 {[%emt 0:02:24]} 26. Rg1 {[%emt 0:09:44]} d5 {[%emt 0:00:49][%cal Re8e4]} 27. Rxh7 {[%emt 0:06:53]} (27. Qg5 $142 Rxe4 (27... Bxe4+ 28. Rxe4) 28. Rxe4 Bxe4+ 29. Ka2) 27... Bxe4+ {[%emt 0:00:53]} 28. Qxe4 {[%emt 0:00:02]} Rxe4 {[%emt 0:00:08]} 29. Rgxg7+ {[%emt 0:00:01]} Kf8 {[%emt 0:00:07]} 30. Rxc7 {[%emt 0:00:09]} Re1+ {[%emt 0:01:24] Black mates.} 31. Kc2 {[%emt 0:00:02] [#]} d3+ $1 {[%emt 0:00:46]} 32. Kxd3 {[%emt 0:01:05]} (32. Kb3 Qxc7) 32... dxc4+ {[%emt 0:00:25]} 33. Kc2 {[%emt 0:00:46]} Qf5+ {[%emt 0:00:37]} 34. Kc3 {[%emt 0:01:37]} Qe5+ {[%emt 0:00:11]} 35. Kb4 {[%emt 0:00:16]} Qxb2+ {[%emt 0:00:24] Weighted Error Value: White=0.89/Black=0.27 (precise) .  Loses game:     	White=1     	---        Mistake:       	White=7     	Black=2      Inaccurate:     	White=1     	Black=1      OK:         	White=4     	Black=7      Best:        	White=2     	Black=2      Strong:       	---       	Black=1      Brilliant:      	---       	Black=1} 0-1

[Event "Austrian Bundesliga 2023-24"]
[Site "Austria"]
[Date "2024.03.22"]
[Round "9.35"]
[White "Mesaros, Florian"]
[Black "Balint, Peter"]
[Result "1-0"]
[ECO "A05"]
[WhiteElo "2414"]
[BlackElo "2345"]
[Annotator "TA"]
[PlyCount "119"]
[EventDate "2023.10.21"]
[EventType "team-tourn"]
[EventCountry "AUT"]
[SourceTitle "playchess.com"]
[Source "ChessBase"]
[SourceQuality "1"]
[TimeControl "40/5400+30:1800+30"]

{[%evp 25,119,22,24,28,25,0,13,1,16,10,0,19,37,44,53,50,54,38,60,32,78,35,65,51,62,52,83,84,72,39,34,0,81,87,86,91,85,89,112,114,108,35,72,67,59,71,83,83,82,76,82,53,66,0,66,68,120,118,105,106,127,116,127,121,158,146,151,101,114,129,120,118,139,83,83,82,82,82,82,29,82,61,95,82,111,104,112,125,118,116,123,109,665,660,609,625]} 1. Nf3 {[%emt 0:00:19]} Nf6 {[%emt 0:00:07]} 2. c4 {[%emt 0:00:32]} c5 {[%emt 0:00:12]} 3. Nc3 {[%emt 0:00:24]} e6 {[%emt 0:00:07]} 4. e3 {[%emt 0:00:20]} Nc6 {[%emt 0:00:20]} 5. d4 {[%emt 0:00:15]} d5 {[%emt 0:00:10]} 6. a3 {[%emt 0:00:14]} a6 {[%emt 0:00:35]} 7. dxc5 {[%emt 0:00:41]} Bxc5 {[%emt 0:00:35]} 8. b4 {[%emt 0:00:21]} Bd6 {[%emt 0:00:29]} 9. Bb2 {[%emt 0:03:48]} O-O {[%emt 0:03:15]} 10. cxd5 {[%emt 0:03:11]} exd5 {[%emt 0:01:07]} 11. Be2 {[%emt 0:00:18]} Re8 {[%emt 0:08:49]} 12. O-O {[%emt 0:00:50]} Bg4 {[%emt 0:20:42] D40: Queen's Gambit Declined: Semi-Tarrasch with 5 e3.} 13. Nd4 {[%emt 0:12:38]} (13. Nxd5 $2 {loses.} Nxd5 14. h3 Bh5 15. Nd4 $19) 13... Bxe2 $146 {[%emt 0:02:59]} ({Predecessor:} 13... Ne5 14. Nxd5 Nxd5 15. Bxg4 Nc4 16. Bc1 Qc7 17. g3 Rad8 18. Qb3 Be5 19. Rd1 g6 20. Bf3 {1-0 Sadek,S (2342)-Ibrahim,M (2140) Cairo Heliopolis op 2nd 2010 (1)}) 14. Ncxe2 {[%emt 0:00:46]} Ne5 {[%emt 0:01:35]} 15. Qb3 {[%emt 0:04:19]} Qd7 {[%emt 0:03:29]} 16. Rad1 {[%emt 0:03:01]} Rac8 {[%emt 0:02:19]} 17. Nf4 {[%emt 0:07:36]} Nc4 {[%emt 0:06:31]} 18. Nde2 {[%emt 0:02:12]} Be5 {[%emt 0:06:50]} 19. Bxe5 {[%emt 0:02:33]} Rxe5 {[%emt 0:00:35]} 20. Rd4 {[%emt 0:01:46]} Qc6 {[%emt 0:10:23]} 21. h3 {[%emt 0:09:32]} h6 {[%emt 0:07:22]} 22. Rfd1 {[%emt 0:01:11]} b6 {[%emt 0:03:23]} (22... g5 $14 {might be stronger.}) 23. a4 {[%emt 0:04:44]} b5 {[%emt 0:11:23]} 24. a5 {[%emt 0:03:33]} Rc7 {[%emt 0:03:45]} 25. Qb1 {[%emt 0:16:18]} Rc8 {[%emt 0:02:25]} 26. Qa1 {[%emt 0:03:50]} Rf5 {[%emt 0:03:24]} 27. Ng3 {[%emt 0:04:48]} (27. h4 $5) 27... Rg5 $1 {[%emt 0:00:12]} 28. Nge2 {[%emt 0:07:47]} (28. Nf1 $14 {should be considered.}) 28... Rf5 $1 $16 {[%emt 0:00:31]} 29. h4 {[%emt 0:02:55]} Re8 {[%emt 0:00:40]} 30. Ng3 {[%emt 0:00:48]} Rfe5 {[%emt 0:00:10] [#]} 31. Nd3 $1 {[%emt 0:00:20]} R5e7 {[%emt 0:00:23]} 32. Nf5 {[%emt 0:01:44]} Re4 {[%emt 0:00:31]} 33. Nf4 {[%emt 0:00:19]} (33. Rxe4 $16 Rxe4 34. Nf4) 33... R4e5 {[%emt 0:00:37]} 34. Ng3 {[%emt 0:01:11]} Nd6 {[%emt 0:00:34]} 35. Nd3 {[%emt 0:00:48]} R5e7 {[%emt 0:00:05]} 36. Rc1 {[%emt 0:00:49]} Nc4 {[%emt 0:00:09]} 37. Rf4 {[%emt 0:00:14]} Kh7 {[%emt 0:00:47]} 38. Qb1 {[%emt 0:01:59]} Kh8 {[%emt 0:00:21]} 39. Qa1 {[%emt 0:00:04]} Kh7 {[%emt 0:00:18]} 40. Rd1 {[%emt 0:00:00]} Qe6 (40... Rc7 $14) 41. Nf5 $16 {[%emt 0:04:47]} Rc7 {[%emt 0:04:25]} 42. Nc5 {[%emt 0:01:32]} Qc6 {[%emt 0:01:36]} 43. Rfd4 {[%emt 0:09:19]} g6 {[%emt 0:15:16]} 44. Ng3 {[%emt 0:01:13]} h5 {[%emt 0:01:36]} 45. Ne2 {[%emt 0:01:02]} Rce7 {[%emt 0:02:23] [#]} 46. Rf4 {[%emt 0:02:43]} (46. Nc3 $142 $1 {[%cal Rc3d5]}) 46... Ne5 {[%emt 0:03:47]} 47. Nd4 {[%emt 0:02:36]} Qd6 {[%emt 0:01:03]} 48. Nf3 {[%emt 0:00:46]} Nxf3+ {[%emt 0:01:47]} 49. Rxf3 {[%emt 0:00:11]} (49. gxf3 $142 Re5 50. Qd4) 49... Ng4 $16 {[%emt 0:00:20]} 50. Rf4 {[%emt 0:01:32]} f5 {[%emt 0:01:35]} 51. Qd4 {[%emt 0:03:43]} Nf6 {[%emt 0:01:30]} 52. Qb2 {[%emt 0:00:33]} (52. Qd2 $16) 52... Re5 {[%emt 0:01:18]} (52... Ne4 $1 $11 {keeps the balance.}) 53. g3 {[%emt 0:03:23]} Ng4 {[%emt 0:01:21]} 54. Qb3 {[%emt 0:01:25]} Kh6 {[%emt 0:00:46]} 55. Kg2 {[%emt 0:00:08]} R8e7 {[%emt 0:00:17]} 56. Rd3 {[%emt 0:00:38]} Nf6 {[%emt 0:00:32]} 57. Rfd4 {[%emt 0:00:15]} Rg7 {[%emt 0:00:33]} 58. Rd1 {[%emt 0:00:18]} g5 $2 {[%emt 0:00:34][%mdl 8192]} (58... Rc7 $16 59. R4d2 Re8) 59. hxg5+ $18 {[%emt 0:01:54]} Rxg5 {[%emt 0:00:26]} 60. f4 {[%emt 0:00:30]} 1-0

[Event "Austrian Bundesliga 2023-24"]
[Site "Austria"]
[Date "2024.03.22"]
[Round "9.36"]
[White "Steindl, Johannes"]
[Black "Gschnitzer, Adrian"]
[Result "0-1"]
[ECO "B90"]
[WhiteElo "2302"]
[BlackElo "2423"]
[Annotator "TA"]
[PlyCount "62"]
[EventDate "2023.10.21"]
[EventType "team-tourn"]
[EventCountry "AUT"]
[SourceTitle "playchess.com"]
[Source "ChessBase"]
[SourceQuality "1"]
[TimeControl "40/5400+30:1800+30"]

{[%evp 13,62,17,25,0,26,0,39,14,0,0,47,62,46,45,114,124,104,106,81,94,72,49,179,0,0,-50,-54,-39,-40,-40,-34,-81,-88,-177,-90,-300,-302,-403,-395,-384,-380,-445,-408,-381,-416,-398,-400,-382,-378,-576,-595]} 1. e4 {[%emt 0:00:02]} c5 {[%emt 0:00:06]} 2. Nf3 {[%emt 0:00:04]} d6 {[%emt 0:00:10]} 3. d4 {[%emt 0:00:03]} cxd4 {[%emt 0:00:08]} 4. Nxd4 {[%emt 0:00:04]} Nf6 {[%emt 0:00:08]} 5. Nc3 {[%emt 0:00:03]} a6 {[%emt 0:00:12]} 6. Be3 {[%emt 0:00:11]} e5 {[%emt 0:01:07]} 7. Nb3 {[%emt 0:00:05]} Be7 {[%emt 0:00:41]} 8. h3 {[%emt 0:00:04]} h6 {[%emt 0:01:00]} 9. Qf3 {[%emt 0:01:35]} Qc7 {[%emt 0:11:21]} 10. O-O-O {[%emt 0:01:21] White is slightly better.} b5 {[%emt 0:01:07]} 11. Qg3 {[%emt 0:09:32]} Bb7 {[%emt 0:12:19]} (11... Kf8 $11) 12. Qxg7 $14 {[%emt 0:24:33]} Rg8 {[%emt 0:00:33]} 13. Qxh6 {[%emt 0:00:04]} Nxe4 {[%emt 0:05:44]} ({Better is} 13... Nbd7 $14) 14. Nxe4 $16 {[%emt 0:09:57]} Bxe4 {[%emt 0:00:08]} 15. Bd3 {[%emt 0:00:02]} Bxd3 {[%emt 0:01:17]} 16. Rxd3 {[%emt 0:00:04]} Nd7 {[%emt 0:01:04][%cal Oa6a5]} 17. Rhd1 {[%emt 0:02:28]} Nf6 {[%emt 0:03:00] [#]} (17... Rxg2 $14 18. Qh8+ Nf8) 18. Kb1 $2 {[%emt 0:18:03]} (18. g4 $1 $18) 18... Rxg2 $11 {[%emt 0:07:27]} 19. h4 {[%emt 0:15:41]} ({White should try} 19. Qh8+ $11 Rg8 20. Qh6) 19... Rc8 $1 $15 {[%emt 0:07:40]} 20. Rc3 {[%emt 0:02:18]} Qd7 {[%emt 0:00:33] Hoping for ...Rxc3.} 21. Bg5 {[%emt 0:01:09]} Rxc3 {[%emt 0:02:28]} 22. Qh8+ {[%emt 0:07:23]} (22. bxc3 $15 Ne4 23. Qh8+ Bf8 24. Bh6 Nxc3+ (24... Nxf2 25. Qxf8#) 25. Kc1) 22... Bf8 $17 {[%emt 0:00:15]} 23. Qxf6 {[%emt 0:00:03] [#]} (23. bxc3 $17 {was the only chance.} Ne4 24. Kb2) 23... Rc4 {[%emt 0:13:10]} ({Black should play} 23... Rc8 $1 $19 {White must now prevent ...Qe6.} 24. Nd4 Qc7 (24... exd4 $2 {loses.} 25. Re1+ $18)) 24. Na5 $2 {[%emt 0:02:33]} (24. a3 $17 {keeps fighting.}) 24... Rc8 $19 {[%emt 0:01:34]} 25. c3 {[%emt 0:01:45]} Qe6 {[%emt 0:03:51]} 26. Qf3 {[%emt 0:03:14]} Qg4 {[%emt 0:00:25]} 27. Qd5 {[%emt 0:00:57]} Rg1 {[%emt 0:04:50]} ({Don't play} 27... Rxf2 28. Nb7 Qf5+ 29. Ka1 $19) 28. f3 {[%emt 0:00:02]} Qf5+ {[%emt 0:02:30]} 29. Kc1 {[%emt 0:00:50]} Rxd1+ {[%emt 0:01:12]} 30. Qxd1 {[%emt 0:00:01]} Qe6 {[%emt 0:03:04]} 31. h5 {[%emt 0:00:31]} (31. a3 $142) 31... Qxa2 {[%emt 0:04:53] Weighted Error Value: White=0.60/Black=0.21 (precise) .  Loses game:     	White=1     	---        Missed win:     	White=1     	---        Mistake:       	White=4     	Black=4      Inaccurate:     	White=2     	Black=2      OK:         	White=7     	Black=10     Best:        	White=1     	Black=4      Strong:       	---       	Black=1} 0-1

[Event "Austrian Bundesliga 2023-24"]
[Site "Austria"]
[Date "2024.03.23"]
[Round "10.1"]
[White "Ragger, Markus"]
[Black "Dragnev, Valentin"]
[Result "1/2-1/2"]
[ECO "D38"]
[WhiteElo "2605"]
[BlackElo "2575"]
[Annotator "TA"]
[PlyCount "63"]
[EventDate "2023.10.21"]
[EventType "team-tourn"]
[EventCountry "AUT"]
[SourceTitle "playchess.com"]
[Source "ChessBase"]
[SourceQuality "1"]
[TimeControl "40/5400+30:1800+30"]

{[%evp 12,63,27,12,12,8,12,13,6,15,0,21,12,0,0,0,12,10,10,11,4,9,15,17,12,26,34,24,47,39,39,47,39,6,12,8,15,10,10,0,0,0,0,0,0,0,0,0,0,0,0,0,0,0]} 1. d4 {[%emt 0:00:02]} Nf6 {[%emt 0:00:48]} 2. c4 {[%emt 0:00:06]} e6 {[%emt 0:00:07]} 3. Nf3 {[%emt 0:00:04]} d5 {[%emt 0:00:35]} 4. Nc3 {[%emt 0:00:07]} Bb4 {[%emt 0:01:23]} 5. Qa4+ {[%emt 0:05:04]} Nc6 {[%emt 0:02:57]} 6. e3 {[%emt 0:00:51]} O-O {[%emt 0:00:23]} 7. Bd2 {[%emt 0:00:10]} dxc4 {[%emt 0:02:54]} 8. Bxc4 {[%emt 0:00:13]} Bd6 {[%emt 0:00:07]} 9. Qc2 {[%emt 0:01:34]} e5 {[%emt 0:00:58]} 10. dxe5 {[%emt 0:01:48]} Nxe5 {[%emt 0:00:12]} 11. Nxe5 {[%emt 0:00:03]} Bxe5 {[%emt 0:00:11]} 12. f4 {[%emt 0:00:41]} Bxc3 {[%emt 0:06:28]} 13. Bxc3 {[%emt 0:00:33]} Ng4 {[%emt 0:00:34]} 14. Bd4 {[%emt 0:00:38]} c5 {[%emt 0:16:14]} 15. Bxc5 {[%emt 0:01:18] A strong pair of Bishops.} Re8 {[%emt 0:00:05][%cal Bf8e8,Be8e3,Be3e4,Be4d4][%mdl 32]} 16. O-O {[%emt 0:12:24]} Nxe3 {[%emt 0:01:12]} (16... b6 {with more complications.} 17. Bd4 Nxe3 18. Bxe3 Rxe3 19. Rad1 Qe7) 17. Bxe3 {[%emt 0:01:00]} Rxe3 {[%emt 0:00:07]} 18. Qf2 {[%emt 0:03:29]} Qb6 {[%emt 0:01:58]} 19. a4 {[%emt 0:14:33][%cal Ba2a4,Ba4a5][%mdl 32] [#] Threatens to win with a5.} Be6 {[%emt 0:08:22]} 20. a5 {[%emt 0:02:04]} Qd4 {[%emt 0:00:39]} 21. Bxe6 {[%emt 0:00:07]} fxe6 {[%emt 0:00:08]} 22. Rae1 {[%emt 0:04:16][%cal Ba1e1,Be1e6,Be6f6,Bf6f8][%mdl 32]} (22. Rad1 {is more complex.} Qe4 23. Rd7 Rf8 24. Rxb7 Re2 25. Qf3) 22... Re4 {[%emt 0:00:35] The position is equal.} 23. Qxd4 {[%emt 0:00:07]} Rxd4 {[%emt 0:00:06]} 24. Rxe6 $11 {[%emt 0:00:08][%mdl 4096] Endgame. KRR-KRR} Rc8 {[%emt 0:02:23]} 25. f5 {[%emt 0:08:38]} Rc2 {[%emt 0:03:06]} 26. f6 {[%emt 0:01:34]} gxf6 {[%emt 0:00:17]} 27. Rexf6 {[%emt 0:00:08]} Rxb2 {[%emt 0:02:07]} 28. Rf8+ {[%emt 0:00:30]} Kg7 {[%emt 0:00:11]} 29. R8f7+ {[%emt 0:00:10]} Kg8 {[%emt 0:00:32]} 30. Rf8+ {[%emt 0:00:39]} Kg7 {[%emt 0:00:02]} 31. R8f7+ {[%emt 0:00:09]} Kg8 {[%emt 0:00:08]} 32. Rf8+ {[%emt 0:00:15] Weighted Error Value: White=0.03 (flawless) /Black=0.03 (flawless) .  Inaccurate:     	White=1     	---        OK:         	White=9     	Black=13     Best:        	White=1     	---} 1/2-1/2